fUST/lending_fUST_20250204
["ID","MTS","AMOUNT","RATE_DAILY","PERIOD"]
[351586992,1738649443391,-500.0,0.00016575,2]
[351586993,1738649443401,-500.0,0.00016575,2]
[351586994,1738649443411,-2441.58,0.00016575,2]
[351586995,1738649443420,-8000.75,0.00016575,2]
[351586996,1738649443429,-1996.26,0.00016575,2]
[351586997,1738649443439,-500.0,0.00016575,2]
[351586998,1738649443448,-500.0,0.00016575,2]
[351586999,1738649443457,-850.43,0.00016575,2]
[351587000,1738649443467,-500.0,0.00016575,2]
[351587001,1738649443476,-523.57,0.00016575,2]
[351587002,1738649443485,-500.0,0.00016575,2]
[351587003,1738649443495,-1674.23,0.00016575,2]
[351587005,1738649443507,-2963.02,0.00016575,2]
[351587006,1738649443517,-500.0,0.00016575,2]
[351587007,1738649443526,-500.0,0.00016575,2]
[351587008,1738649443537,-500.0,0.00016575,2]
[351587009,1738649443546,-1317.09,0.00016575,2]
[351587010,1738649443556,-2126.24,0.00016575,2]
[351587012,1738649443566,-500.0,0.00016575,2]
[351587014,1738649443575,-500.0,0.00016575,2]
[351587016,1738649443585,-500.0,0.00016575,2]
[351587018,1738649443595,-500.0,0.00016575,2]
[351587020,1738649443604,-757.71,0.00016575,2]
[351587022,1738649443614,-500.0,0.00016575,2]
[351587023,1738649443623,-3123.01,0.00016575,2]
[351587024,1738649443633,-500.0,0.00016575,2]
[351587025,1738649443644,-1205.84,0.00016575,2]
[351587026,1738649443653,-500.0,0.00016575,2]
[351587027,1738649443663,-500.0,0.00016575,2]
[351587028,1738649443671,-1579.79,0.00016575,2]
[351587029,1738649443681,-570.96,0.00016575,2]
[351587030,1738649443691,-500.0,0.00016575,2]
[351587031,1738649443700,-500.0,0.00016575,2]
[351587032,1738649443709,-500.0,0.00016575,2]
[351587033,1738649443719,-500.0,0.00016575,2]
[351587034,1738649443729,-500.0,0.00016575,2]
[351587035,1738649443738,-421.3030884,0.00016575,2]
[351587036,1738649443747,-209.47333196,0.00016575,2]
[351587037,1738649443761,-500.0,0.00016578,2]
[351587038,1738649443777,-290.63164702,0.00016627,2]
[351587039,1738649443795,-160.0,0.00016639,4]
[351587040,1738649443812,-496.51148595,0.000167,2]
[351587041,1738649443829,-151.0,0.00016711,2]
[351587042,1738649443840,-209.326884,0.00016712,2]
[351587043,1738649443850,-500.0,0.00016712,2]
[351587044,1738649443860,-500.0,0.00016712,2]
[351587045,1738649443869,-500.0,0.00016712,2]
[351587046,1738649443880,-500.0,0.00016712,2]
[351587047,1738649443890,-500.0,0.00016712,2]
[351587048,1738649443900,-550.36,0.00016712,2]
[351587049,1738649443910,-500.0,0.00016712,2]
[351587050,1738649443920,-500.0,0.00016712,2]
[351587051,1738649443930,-385.74905744,0.00016712,2]
[351587052,1738649443940,-500.0,0.00016712,2]
[351587053,1738649443950,-500.0,0.00016712,2]
[351587054,1738649443960,-500.0,0.00016712,2]
[351587055,1738649443970,-500.0,0.00016712,2]
[351587056,1738649443979,-500.0,0.00016712,2]
[351587057,1738649443989,-657.72,0.00016712,2]
[351587058,1738649443999,-500.0,0.00016712,2]
[351587059,1738649444011,-857.78,0.00016712,2]
[351587060,1738649444021,-500.0,0.00016712,2]
[351587061,1738649444031,-519.82532266,0.00016712,2]
[351587062,1738649444041,-500.0,0.00016712,2]
[351587063,1738649444050,-500.0,0.00016712,2]
[351587064,1738649444060,-500.0,0.00016712,2]
[351587065,1738649444070,-500.0,0.00016712,2]
[351587066,1738649444079,-500.0,0.00016712,2]
[351587067,1738649444089,-500.0,0.00016712,2]
[351587068,1738649444099,-1098.51,0.00016712,2]
[351587069,1738649444108,-1080.38,0.00016712,2]
[351587070,1738649444118,-500.0,0.00016712,2]
[351587071,1738649444128,-500.0,0.00016712,2]
[351587072,1738649444139,-500.0,0.00016712,2]
[351587073,1738649444149,-500.0,0.00016712,2]
[351587074,1738649444158,-1013.77,0.00016712,2]
[351587075,1738649444168,-500.0,0.00016712,2]
[351587076,1738649444178,-500.0,0.00016712,2]
[351587077,1738649444187,-500.0,0.00016712,2]
[351587078,1738649444197,-1700.69,0.00016712,2]
[351587079,1738649444206,-500.0,0.00016712,2]
[351587080,1738649444217,-500.0,0.00016712,2]
[351587081,1738649444227,-724.52,0.00016712,2]
[351587082,1738649444241,-2709.51,0.00016712,2]
[351587083,1738649444263,-500.0,0.00016712,2]
[351587084,1738649444279,-500.0,0.00016712,2]
[351587085,1738649444292,-1650.79,0.00016712,2]
[351587086,1738649444307,-5032.81,0.00016712,2]
[351587087,1738649444431,-500.0,0.00016712,2]
[351587088,1738649444443,-482.78817286,0.00016712,2]
[351587089,1738649444456,-500.0,0.00016712,2]
[351587090,1738649444467,-500.0,0.00016712,2]
[351587091,1738649444477,-537.85436078,0.00016712,2]
[351587092,1738649444488,-500.0,0.00016712,2]
[351587093,1738649444497,-500.0,0.00016712,2]
[351587094,1738649444510,-1274.21,0.00016712,2]
[351587095,1738649444519,-500.0,0.00016712,2]
[351587096,1738649444530,-3300.66,0.00016712,2]
[351587097,1738649444540,-2541.56,0.00016712,2]
[351587098,1738649444550,-500.0,0.00016712,2]
[351587099,1738649444559,-500.0,0.00016712,2]
[351587100,1738649444569,-500.0,0.00016712,2]
[351587101,1738649444579,-500.0,0.00016712,2]
[351587102,1738649444589,-500.0,0.00016712,2]
[351587103,1738649444598,-1583.31,0.00016712,2]
[351587104,1738649444609,-500.0,0.00016712,2]
[351587105,1738649444619,-500.0,0.00016712,2]
[351587106,1738649444628,-500.0,0.00016712,2]
[351587107,1738649444638,-3657.56,0.00016712,2]
[351587108,1738649444647,-509.82929129,0.00016712,2]
[351587109,1738649444656,-500.0,0.00016712,2]
[351587110,1738649444666,-689.88,0.00016712,2]
[351587111,1738649444676,-1287.09,0.00016712,2]
[351587112,1738649444685,-1041.94,0.00016712,2]
[351587113,1738649444695,-2776.54,0.00016712,2]
[351587114,1738649444705,-322.36171211,0.00016712,2]
[351587115,1738649444714,-500.0,0.00016712,2]
[351587116,1738649444724,-7984.19,0.00016712,2]
[351587117,1738649444734,-500.0,0.00016712,2]
[351587118,1738649444743,-507.75948276,0.00016712,2]
[351587119,1738649444754,-509.65043041,0.00016712,2]
[351587120,1738649444763,-1203.38,0.00016712,2]
[351587121,1738649444773,-995.09,0.00016712,2]
[351587122,1738649444783,-500.0,0.00016712,2]
[351587123,1738649444793,-186.50174509,0.00016712,2]
[351587124,1738649444802,-500.0,0.00016712,2]
[351587125,1738649444812,-665.33,0.00016712,2]
[351587126,1738649444822,-500.0,0.00016712,2]
[351587127,1738649444832,-1634.65,0.00016712,2]
[351587128,1738649444841,-533.49,0.00016712,2]
[351587129,1738649444851,-500.0,0.00016712,2]
[351587130,1738649444860,-500.0,0.00016712,2]
[351587131,1738649444870,-959.65,0.00016712,2]
[351587132,1738649444880,-190.136283,0.00016712,2]
[351587133,1738649444890,-647.49762432,0.00016712,2]
[351587134,1738649444899,-500.0,0.00016712,2]
[351587135,1738649444909,-616.15545714,0.00016712,5]
[351587136,1738649444918,-500.0,0.00016712,2]
[351587137,1738649444928,-23660.31,0.00016712,2]
[351587138,1738649444937,-1793.54487185,0.00016712,2]
[351587139,1738649445113,-8635.46512815,0.00016712,2]
[351587140,1738649445123,-500.0,0.00016712,2]
[351587141,1738649445134,-598.7,0.00016712,2]
[351587142,1738649445144,-641.1,0.00016712,2]
[351587143,1738649445154,-500.0,0.00016712,2]
[351587144,1738649445164,-500.0,0.00016712,2]
[351587145,1738649445173,-996.19386925,0.00016712,2]
[351587146,1738649445185,-390.50613075,0.00016712,2]
[351587147,1738649445195,-1106.19,0.00016712,2]
[351587148,1738649445204,-500.0,0.00016712,2]
[351587149,1738649445214,-500.0,0.00016712,2]
[351587150,1738649445223,-2441.58,0.00016712,2]
[351587151,1738649445232,-1564.55193736,0.00016712,2]
[351587221,1738649479225,600.0,0.00014246,2]
[351587222,1738649662395,202.443721,0.00013699,2]
[351587228,1738649983497,152.16648572,0.00014693,5]
[351587232,1738650038149,10000.0,0.00016,10]
[351587233,1738650047686,10000.0,0.00016,10]
[351587234,1738650053614,10000.0,0.00016,10]
[351587235,1738650063116,10000.0,0.00016,10]
[351587236,1738650074992,10000.0,0.00016,10]
[351587237,1738650089939,449.0,0.00016,10]
[351587238,1738650250175,225.363426,0.00013973,2]
[351587260,1738650528823,217.783021,0.00013699,2]
[351587297,1738650632649,-256.55234567,0.00015429,2]
[351587300,1738650632662,-309.54735653,0.00015429,2]
[351587301,1738650632673,-271.6681458,0.00015516,2]
[351587302,1738650632685,-600.0,0.00015616,2]
[351587304,1738650632695,-271.66814578,0.00015927,2]
[351587306,1738650632711,-153.55854775,0.00016329,2]
[351587308,1738650632722,-271.66814578,0.00016338,2]
[351587310,1738650632731,-499.0,0.00016437,2]
[351587312,1738650632741,-300.0,0.00016437,2]
[351587314,1738650632752,-151.0,0.00016438,2]
[351587316,1738650632762,-151.0,0.00016438,2]
[351587318,1738650632771,-500.0,0.00016438,2]
[351587320,1738650632781,-505.77334746,0.00016438,2]
[351587322,1738650632791,-500.0,0.00016438,2]
[351587324,1738650632801,-376.83116846,0.00016438,2]
[351587326,1738650632810,-630.31,0.00016438,2]
[351587328,1738650632820,-500.0,0.00016438,2]
[351587330,1738650632829,-222.25817926,0.00016438,2]
[351587331,1738650632839,-500.0,0.00016438,2]
[351587332,1738650632848,-500.0,0.00016438,2]
[351587333,1738650632858,-500.0,0.00016438,2]
[351587334,1738650632867,-500.0,0.00016438,2]
[351587335,1738650632877,-476.39169108,0.00016438,2]
[351587336,1738650632886,-500.0,0.00016438,2]
[351587337,1738650632895,-508.37606612,0.00016438,2]
[351587338,1738650632904,-500.0,0.00016438,2]
[351587339,1738650632914,-500.0,0.00016438,2]
[351587340,1738650632923,-500.0,0.00016438,2]
[351587341,1738650632933,-239.92171968,0.00016438,2]
[351587342,1738650632945,-260.07828032,0.00016438,2]
[351587343,1738650632958,-500.0,0.00016438,2]
[351587344,1738650632968,-500.0,0.00016438,2]
[351587345,1738650632978,-500.0,0.00016438,2]
[351587346,1738650632987,-500.0,0.00016438,2]
[351587347,1738650632997,-659.81,0.00016438,2]
[351587348,1738650633006,-500.0,0.00016438,2]
[351587349,1738650633016,-500.0,0.00016438,2]
[351587350,1738650633027,-513.58999976,0.00016438,2]
[351587351,1738650633036,-500.0,0.00016438,2]
[351587352,1738650633227,-500.0,0.00016438,2]
[351587353,1738650633238,-500.0,0.00016438,2]
[351587354,1738650633248,-500.0,0.00016438,2]
[351587355,1738650633258,-500.0,0.00016438,2]
[351587356,1738650633268,-500.0,0.00016438,2]
[351587357,1738650633277,-518.1928402,0.00016438,2]
[351587358,1738650633288,-500.0,0.00016438,2]
[351587359,1738650633297,-500.0,0.00016438,2]
[351587360,1738650633307,-567.6,0.00016438,2]
[351587361,1738650633317,-500.0,0.00016438,2]
[351587362,1738650633327,-500.0,0.00016438,2]
[351587363,1738650633337,-164.35698989,0.00016438,2]
[351587364,1738650633347,-659.05,0.00016438,2]
[351587365,1738650633357,-500.0,0.00016438,2]
[351587366,1738650633366,-500.0,0.00016438,2]
[351587367,1738650633375,-500.0,0.00016438,2]
[351587368,1738650633385,-500.0,0.00016438,2]
[351587369,1738650633395,-500.0,0.00016438,2]
[351587370,1738650633405,-500.0,0.00016438,2]
[351587371,1738650633415,-500.0,0.00016438,2]
[351587372,1738650633425,-500.0,0.00016438,2]
[351587373,1738650633436,-500.0,0.00016438,2]
[351587374,1738650633446,-500.0,0.00016438,2]
[351587375,1738650633463,-500.0,0.00016438,2]
[351587376,1738650633473,-500.0,0.00016438,2]
[351587377,1738650633483,-500.0,0.00016438,2]
[351587378,1738650633493,-500.0,0.00016438,2]
[351587379,1738650633504,-988.71,0.00016438,2]
[351587380,1738650633515,-500.0,0.00016438,2]
[351587381,1738650633525,-500.0,0.00016438,2]
[351587382,1738650633536,-500.0,0.00016438,2]
[351587383,1738650633547,-500.0,0.00016438,2]
[351587384,1738650633558,-500.0,0.00016438,2]
[351587385,1738650633569,-500.0,0.00016438,2]
[351587386,1738650633579,-500.0,0.00016438,5]
[351587387,1738650633589,-500.0,0.00016438,2]
[351587388,1738650633599,-1219.41,0.00016438,2]
[351587389,1738650633610,-500.0,0.00016438,2]
[351587390,1738650633620,-500.0,0.00016438,2]
[351587391,1738650633630,-500.0,0.00016438,2]
[351587392,1738650633640,-1247.04,0.00016438,2]
[351587393,1738650633650,-500.0,0.00016438,2]
[351587394,1738650633665,-500.0,0.00016438,2]
[351587395,1738650633675,-500.0,0.00016438,2]
[351587396,1738650633685,-500.0,0.00016438,2]
[351587397,1738650633695,-506.40964396,0.00016438,2]
[351587398,1738650633709,-504.71568762,0.00016438,2]
[351587399,1738650633719,-209.47333196,0.00016438,2]
[351587400,1738650633729,-536.02,0.00016438,2]
[351587401,1738650633739,-500.0,0.00016438,2]
[351587402,1738650633749,-500.0,0.00016438,2]
[351587403,1738650633760,-500.0,0.00016438,2]
[351587404,1738650633771,-500.0,0.00016438,2]
[351587405,1738650633780,-500.0,0.00016438,2]
[351587406,1738650633790,-504.44228573,0.00016438,2]
[351587407,1738650633800,-500.0,0.00016438,2]
[351587408,1738650633810,-500.0,0.00016438,2]
[351587409,1738650633820,-500.0,0.00016438,2]
[351587410,1738650633829,-500.0,0.00016438,2]
[351587411,1738650633840,-1174.47,0.00016438,2]
[351587412,1738650633849,-500.0,0.00016438,2]
[351587413,1738650633859,-509.10665467,0.00016438,2]
[351587414,1738650633868,-724.52,0.00016438,2]
[351587415,1738650633879,-500.0,0.00016438,2]
[351587416,1738650633889,-541.61831526,0.00016438,2]
[351587417,1738650633899,-500.0,0.00016438,2]
[351587418,1738650633909,-666.97,0.00016438,2]
[351587419,1738650633920,-500.0,0.00016438,2]
[351587420,1738650633930,-500.0,0.00016438,2]
[351587421,1738650633940,-500.0,0.00016438,2]
[351587422,1738650633950,-500.0,0.00016438,2]
[351587423,1738650633961,-500.0,0.00016438,2]
[351587424,1738650633971,-500.0,0.00016438,2]
[351587425,1738650633980,-500.0,0.00016438,2]
[351587426,1738650633990,-500.0,0.00016438,2]
[351587427,1738650634001,-500.0,0.00016438,2]
[351587428,1738650634011,-1863.49,0.00016438,2]
[351587429,1738650634024,-500.0,0.00016438,2]
[351587430,1738650634035,-1606.71,0.00016438,2]
[351587431,1738650634045,-500.0,0.00016438,2]
[351587432,1738650634055,-500.0,0.00016438,2]
[351587433,1738650634065,-3300.66,0.00016438,2]
[351587434,1738650634075,-500.0,0.00016438,2]
[351587435,1738650634084,-500.0,0.00016438,2]
[351587436,1738650634094,-500.0,0.00016438,2]
[351587437,1738650634104,-3026.54,0.00016438,2]
[351587438,1738650634114,-2996.51,0.00016438,2]
[351587439,1738650634124,-500.0,0.00016438,2]
[351587440,1738650634138,-500.0,0.00016438,2]
[351587441,1738650634148,-5708.76,0.00016438,2]
[351587442,1738650634158,-500.0,0.00016438,2]
[351587443,1738650634168,-500.0,0.00016438,2]
[351587444,1738650634178,-500.0,0.00016438,2]
[351587445,1738650634188,-500.0,0.00016438,2]
[351587446,1738650634198,-500.0,0.00016438,2]
[351587447,1738650634212,-500.0,0.00016438,2]
[351587448,1738650634222,-1186.02,0.00016438,2]
[351587449,1738650634231,-500.0,0.00016438,2]
[351587450,1738650634241,-4033.12,0.00016438,2]
[351587451,1738650634251,-500.0,0.00016438,2]
[351587452,1738650634261,-500.0,0.00016438,2]
[351587453,1738650634271,-9335.95,0.00016438,2]
[351587454,1738650634280,-500.0,0.00016438,2]
[351587455,1738650634290,-1075.5393176,0.00016438,2]
[351587456,1738650634305,-386.1706824,0.00016438,2]
[351587457,1738650634315,-500.0,0.00016438,2]
[351587458,1738650634325,-500.0,0.00016438,2]
[351587459,1738650634335,-2955.25,0.00016438,2]
[351587460,1738650634344,-1188.82,0.00016438,2]
[351587461,1738650634353,-500.0,0.00016438,2]
[351587462,1738650634363,-500.0,0.00016438,2]
[351587463,1738650634373,-500.0,0.00016438,2]
[351587464,1738650634382,-790.33,0.00016438,2]
[351587465,1738650634392,-500.0,0.00016438,2]
[351587466,1738650634402,-1713.09,0.00016438,2]
[351587467,1738650634412,-500.0,0.00016438,2]
[351587468,1738650634422,-1474.59,0.00016438,2]
[351587469,1738650634432,-500.0,0.00016438,2]
[351587470,1738650634441,-500.0,0.00016438,2]
[351587471,1738650634454,-500.0,0.00016438,2]
[351587472,1738650634464,-1176.89,0.00016438,2]
[351587473,1738650634475,-500.0,0.00016438,2]
[351587474,1738650634484,-500.0,0.00016438,2]
[351587475,1738650634495,-28265.97,0.00016438,2]
[351587476,1738650634504,-733.47,0.00016438,2]
[351587477,1738650634514,-500.0,0.00016438,2]
[351587478,1738650634524,-500.0,0.00016438,2]
[351587479,1738650634533,-1516.42,0.00016438,2]
[351587480,1738650634543,-500.0,0.00016438,2]
[351587481,1738650634554,-500.0,0.00016438,2]
[351587482,1738650634564,-500.0,0.00016438,2]
[351587483,1738650634574,-500.0,0.00016438,2]
[351587484,1738650634584,-500.0,0.00016438,2]
[351587485,1738650634594,-500.0,0.00016438,2]
[351587486,1738650634604,-533.49,0.00016438,2]
[351587487,1738650634614,-500.0,0.00016438,2]
[351587488,1738650634623,-500.0,0.00016438,2]
[351587489,1738650634633,-500.0,0.00016438,2]
[351587490,1738650634642,-500.0,0.00016438,2]
[351587491,1738650634652,-500.0,0.00016438,2]
[351587492,1738650634666,-500.0,0.00016438,2]
[351587493,1738650634675,-1411.71,0.00016438,2]
[351587494,1738650634684,-10969.22,0.00016438,2]
[351587495,1738650634693,-500.0,0.00016438,2]
[351587496,1738650634709,-850.43,0.00016438,2]
[351587497,1738650634719,-500.0,0.00016438,2]
[351587498,1738650634728,-500.0,0.00016438,2]
[351587499,1738650634741,-1774.88,0.00016438,2]
[351587500,1738650634751,-614.39,0.00016438,2]
[351587501,1738650634760,-500.0,0.00016438,2]
[351587502,1738650634770,-1060.1,0.00016438,2]
[351587503,1738650634780,-200.2267951,0.00016438,2]
[351587504,1738650634790,-500.0,0.00016438,2]
[351587505,1738650634800,-2721.71,0.00016438,2]
[351587506,1738650634810,-500.0,0.00016438,2]
[351587507,1738650634820,-3370.51,0.00016438,2]
[351587508,1738650634830,-573.76,0.00016438,2]
[351587509,1738650634839,-500.0,0.00016438,2]
[351587510,1738650634849,-500.0,0.00016438,2]
[351587511,1738650634859,-500.0,0.00016438,2]
[351587512,1738650634869,-500.0,0.00016438,2]
[351587513,1738650634879,-500.0,0.00016438,2]
[351587514,1738650634888,-1374.95069485,0.00016438,2]
[351587515,1738650634902,-507.60930515,0.00016438,2]
[351587516,1738650634911,-500.0,0.00016438,2]
[351587517,1738650634921,-500.0,0.00016438,2]
[351587518,1738650634931,-408.98660654,0.00016438,2]
[351587519,1738650634960,-1328.25393396,0.00016438,2]
[351587520,1738650634972,-2307.0,0.00016438,2]
[351587544,1738650638514,-4811.6794595,0.00016438,2]
[351587546,1738650638525,-500.0,0.00016438,2]
[351587548,1738650638534,-500.0,0.00016438,2]
[351587550,1738650638544,-500.0,0.00016438,2]
[351587552,1738650638553,-1788.12,0.00016438,2]
[351587554,1738650638563,-500.0,0.00016438,2]
[351587557,1738650638573,-500.0,0.00016438,2]
[351587559,1738650638582,-1414.18,0.00016438,2]
[351587577,1738650638706,-500.0,0.00016438,2]
[351587579,1738650638716,-757.71,0.00016438,2]
[351587581,1738650638726,-1996.26,0.00016438,2]
[351587582,1738650638737,-500.0,0.00016438,2]
[351587583,1738650638747,-2050.9,0.00016438,2]
[351587584,1738650638756,-500.0,0.00016438,2]
[351587585,1738650638765,-500.0,0.00016438,2]
[351587586,1738650638775,-523.57,0.00016438,2]
[351587587,1738650638784,-500.0,0.00016438,2]
[351587588,1738650638793,-500.0,0.00016438,2]
[351587589,1738650638802,-500.0,0.00016438,2]
[351587590,1738650638812,-500.0,0.00016438,2]
[351587591,1738650638822,-500.0,0.00016438,2]
[351587592,1738650638831,-3567.46,0.00016438,2]
[351587593,1738650638841,-500.0,0.00016438,2]
[351587594,1738650638850,-500.0,0.00016438,2]
[351587595,1738650638859,-504.5757575,0.00016438,2]
[351587596,1738650638869,-1525.43,0.00016438,2]
[351587597,1738650638879,-500.0,0.00016438,2]
[351587598,1738650638888,-502.14763186,0.00016438,2]
[351587599,1738650638898,-1950.69,0.00016438,2]
[351587600,1738650638908,-484.53899975,0.00016438,2]
[351587601,1738650638917,-500.0,0.00016438,2]
[351587602,1738650638927,-500.0,0.00016438,2]
[351587603,1738650638937,-151.0,0.0001644,2]
[351587604,1738650638946,-282.0,0.0001646,2]
[351587605,1738650638957,-160.0,0.0001647,3]
[351587606,1738650638966,-503.38127608,0.00016473,2]
[351587607,1738650638976,-500.55911481,0.00016473,2]
[351587608,1738650638985,-500.0,0.00016473,2]
[351587609,1738650638994,-280.92367141,0.00016473,2]
[351587610,1738650639003,-350.85680144,0.00016473,2]
[351587611,1738650639013,-468.95544439,0.00016473,2]
[351587612,1738650639022,-500.7393019,0.00016473,2]
[351587613,1738650639032,-500.0,0.00016473,2]
[351587614,1738650639041,-311.37696299,0.00016473,2]
[351587615,1738650639051,-500.0,0.00016473,2]
[351587616,1738650639060,-26206.13003164,0.00016475,2]
[351587617,1738650639070,-151.0,0.000165,2]
[351587618,1738650639079,-151.0,0.000165,2]
[351587619,1738650639088,-209102.1627511,0.000165,2]
[351587620,1738650639097,-163.5183233,0.00016544,2]
[351587621,1738650639107,-151.0,0.00016547,2]
[351587622,1738650639116,-153.55854775,0.00016548,2]
[351587623,1738650639126,-150.491,0.00016561,2]
[351587624,1738650639136,-1974.0,0.00016561,2]
[351587625,1738650639145,-540.67,0.00016561,2]
[351587626,1738650639154,-2298.0,0.00016561,2]
[351587627,1738650639164,-318.105,0.00016573,2]
[351587628,1738650639174,-160.0,0.00016574,2]
[351587629,1738650639183,-500.0,0.00016574,2]
[351587630,1738650639193,-500.0,0.00016574,2]
[351587631,1738650639202,-500.0,0.00016574,2]
[351587632,1738650639212,-500.0,0.00016574,2]
[351587633,1738650639221,-500.0,0.00016574,2]
[351587634,1738650639231,-500.0,0.00016574,2]
[351587635,1738650639240,-500.0,0.00016574,2]
[351587636,1738650639249,-500.0,0.00016574,2]
[351587637,1738650639258,-151.0,0.00016575,2]
[351587638,1738650639268,-151.0,0.00016575,2]
[351587639,1738650639277,-226.813716,0.00016575,2]
[351587640,1738650639286,-500.0,0.00016575,2]
[351587641,1738650639295,-630.31,0.00016575,2]
[351587642,1738650639305,-504.9480489,0.00016575,2]
[351587643,1738650639314,-500.0,0.00016575,2]
[351587644,1738650639323,-500.0,0.00016575,2]
[351587645,1738650639333,-500.0,0.00016575,2]
[351587646,1738650639342,-519.82532266,0.00016575,2]
[351587647,1738650639351,-500.0,0.00016575,2]
[351587648,1738650639361,-151.0,0.00016575,2]
[351587649,1738650639370,-500.0,0.00016575,2]
[351587650,1738650639380,-500.0,0.00016575,2]
[351587651,1738650639389,-151.0,0.00016575,2]
[351587652,1738650639398,-151.0,0.00016575,2]
[351587653,1738650639407,-500.0,0.00016575,2]
[351587654,1738650639417,-659.81,0.00016575,2]
[351587655,1738650639426,-385.74905744,0.00016575,2]
[351587656,1738650639436,-500.0,0.00016575,2]
[351587657,1738650639445,-500.0,0.00016575,2]
[351587658,1738650639455,-500.0,0.00016575,2]
[351587659,1738650639464,-500.0,0.00016575,2]
[351587660,1738650639473,-500.0,0.00016575,2]
[351587661,1738650639483,-500.0,0.00016575,2]
[351587662,1738650639491,-500.0,0.00016575,2]
[351587663,1738650639501,-500.0,0.00016575,2]
[351587664,1738650639510,-500.0,0.00016575,2]
[351587665,1738650639519,-500.0,0.00016575,2]
[351587666,1738650639529,-659.05,0.00016575,2]
[351587667,1738650639539,-500.0,0.00016575,2]
[351587668,1738650639548,-500.0,0.00016575,2]
[351587669,1738650639557,-500.0,0.00016575,2]
[351587670,1738650639566,-500.0,0.00016575,2]
[351587671,1738650639576,-500.0,0.00016575,2]
[351587672,1738650639586,-500.0,0.00016575,2]
[351587673,1738650639595,-500.0,0.00016575,2]
[351587674,1738650639604,-500.0,0.00016575,2]
[351587675,1738650639614,-500.0,0.00016575,2]
[351587676,1738650639624,-500.0,0.00016575,2]
[351587677,1738650639633,-988.71,0.00016575,2]
[351587678,1738650639643,-354.87565461,0.00016575,2]
[351587679,1738650639652,-151.0,0.00016575,2]
[351587680,1738650639662,-500.0,0.00016575,2]
[351587681,1738650639672,-151.0,0.00016575,2]
[351587682,1738650639681,-500.0,0.00016575,2]
[351587683,1738650639691,-500.0,0.00016575,2]
[351587684,1738650639700,-500.0,0.00016575,2]
[351587685,1738650639711,-269.56383552,0.00016575,2]
[351587686,1738650639722,-500.0,0.00016575,5]
[351587687,1738650639732,-500.0,0.00016575,2]
[351587688,1738650639741,-1219.41,0.00016575,2]
[351587689,1738650639751,-151.0,0.00016575,2]
[351587690,1738650639759,-500.0,0.00016575,2]
[351587691,1738650639769,-500.0,0.00016575,2]
[351587692,1738650639778,-504.19583548,0.00016575,2]
[351587693,1738650639788,-151.0,0.00016575,2]
[351587694,1738650639798,-151.0,0.00016575,2]
[351587695,1738650639807,-1247.04,0.00016575,2]
[351587696,1738650639817,-500.0,0.00016575,2]
[351587697,1738650639827,-151.0,0.00016575,2]
[351587698,1738650639836,-151.0,0.00016575,2]